bitfinex-derivatives/quotes_SOLF0:USTF0_20240829
["timestamp","ask_amount","ask_price","bid_price","bid_amount"]
[1724961467053,0.04589056,140.13,140.12,3.5674]
[1724961467356,0.04589056,140.13,140.11,0.05011639]
[1724961468158,0.04589056,140.13,140.11,3.61761639]
[1724961469563,0.04589056,140.13,140.12,3.5674]
[1724961469758,0.04589056,140.13,140.12,30.9674]
[1724961470259,6.18,140.2,140.14,3.5669]
[1724961470464,6.18,140.2,140.11,27.4]
[1724961470660,31.3871,140.22,140.11,27.4]
[1724961470859,3.5662,140.17,140.13,3.567]
[1724961471059,3.5662,140.17,140.11,27.4]
[1724961471060,6.18,140.2,140.12,27.4]
[1724961471261,0.05200971,140.17,140.15,3.62146711]
[1724961471462,0.05055363,140.17,140.15,3.62146711]
[1724961471663,0.05055363,140.17,140.15,0.05496711]
[1724961472363,0.05055363,140.17,140.16,3.5664]
[1724961475576,0.05055363,140.17,140.16,7.07643481]
[1724961477975,0.05055363,140.17,140.16,34.47643481]
[1724961478172,0.05055363,140.17,140.16,36.75862702]
[1724961480668,3.5645,140.24,140.16,33.19222702]
[1724961480871,1.3112,140.25,140.18,27.4]
[1724961481575,4.8756,140.25,140.19,3.52981735]
[1724961481772,0.05394279,140.23,140.21,0.05007332]
[1724961482078,72.54992668,140.17,140.16,3.5664]
[1724961482276,4.9471,140.26,140.16,30.98186799]
[1724961482475,4.9471,140.26,140.2,27.4]
[1724961482667,4.9471,140.26,140.21,3.52696526]
[1724961483065,0.04608077,140.25,140.22,3.61450861]
[1724961483467,0.04608077,140.25,140.22,7.20992402]
[1724961483676,0.04608077,140.25,140.22,3.61450861]
[1724961484678,0.04608077,140.25,140.23,3.5646]
[1724961484980,0.04608077,140.25,140.22,3.5905293]
[1724961485283,0.04608077,140.25,140.24,3.5644]
[1724961486276,0.04608077,140.25,140.22,27.44980861]
[1724961486477,0.04608077,140.25,140.22,30.94454591]
[1724961486978,0.04608077,140.25,140.24,3.5644]
[1724961489474,0.04608077,140.25,140.23,3.5645]
[1724961489679,0.04608077,140.25,140.22,0.04980861]
[1724961489981,27.4,140.24,140.14,27.4]
[1724961490184,33.56,140.24,140.17,3.566]
[1724961490874,3.61882895,140.22,140.19,0.04860168]
[1724961492986,3.5654,140.2,140.19,0.04860168]
[1724961493984,33.61372895,140.22,140.19,0.04860168]
[1724961494181,0.05372895,140.22,140.19,0.04860168]
[1724961495086,3.61882895,140.22,140.19,0.04860168]
[1724961495686,3.5652,140.21,140.19,0.04860168]
[1724961496279,0.05372895,140.22,140.19,0.04860168]
[1724961496889,0.05372895,140.22,140.2,3.5653]
[1724961497192,0.05372895,140.22,140.19,0.04860168]
[1724961498288,27.45372895,140.22,140.19,0.04860168]
[1724961498692,3.5653,140.21,140.19,0.04860168]
[1724961498889,27.45372895,140.22,140.19,0.04860168]
[1724961499689,3.5654,140.2,140.19,0.04860168]
[1724961500381,3.566,140.18,140.11,28.7041]
[1724961500582,6.16,140.23,140.12,2.28222969]
[1724961500583,30.0784,140.19,140.12,2.28222969]
[1724961500788,30.0784,140.19,140.11,27.4]
[1724961500989,3.5663,140.17,140.13,3.567]
[1724961501287,30.0784,140.19,140.11,27.4]
[1724961501496,0.04542517,140.16,140.14,3.5667]
[1724961501896,0.04542517,140.16,140.11,27.4]
[1724961502092,0.04542517,140.16,140.14,27.4]
[1724961502492,0.04542517,140.16,140.15,3.5667]
[1724961503686,339.923,140.22,140.18,3.5657]
[1724961503893,4.923,140.22,140.18,3.5657]
[1724961504486,3.5653,140.21,140.17,3.5659]
[1724961504799,0.05343065,140.2,140.18,0.04542517]
[1724961507397,3.61893065,140.2,140.18,0.04542517]
[1724961507600,0.05343065,140.2,140.18,0.04542517]
[1724961508095,3.5656,140.19,140.18,0.04542517]
[1724961510198,3.5659,140.18,140.15,3.5665]
[1724961511295,0.047033,140.18,140.16,3.5662]
[1724961512699,3.612933,140.18,140.15,3.5666]
[1724961513803,0.047033,140.18,140.16,3.5664]
[1724961514600,3.612933,140.18,140.15,3.5665]
[1724961514908,27.4,140.16,140.09,3.28854149]
[1724961515107,0.05152357,140.14,140.08,6.86073337]
[1724961515298,0.05152357,140.14,140.1,3.5678]
[1724961516206,3.61852357,140.14,140.1,3.5678]
[1724961516407,0.05152357,140.14,140.1,3.5678]
[1724961518301,0.05152357,140.14,140.11,3.5676]
[1724961519099,3.61852357,140.14,140.1,3.5678]
[1724961520202,0.05152357,140.14,140.11,3.5675]
[1724961521414,0.05152357,140.14,140.06,3.28854149]
[1724961521705,27.4,140.13,140.05,3.62513099]
[1724961521901,0.0486762,140.1,140.05,3.62513099]
[1724961522308,0.0486762,140.1,140.04,27.4]
[1724961522510,0.0486762,140.1,140.07,3.5685]
[1724961524604,0.0486762,140.1,140.08,3.5684]
[1724961525812,0.0486762,140.1,140.02,9.44854149]
[1724961526005,0.0486762,140.1,140.03,2.28360553]
[1724961526608,0.0486762,140.1,140.06,3.5687]
[1724961526809,0.0486762,140.1,140.03,29.68360553]
[1724961527313,0.0486762,140.1,140.06,27.4]
[1724961527708,0.0486762,140.1,140.09,3.5682]
[1724961530311,0.0486762,140.1,140.09,30.9682]
[1724961530511,1.3874,140.16,140.09,27.4]
[1724961530707,101.2791,140.17,140.09,27.4]
[1724961530903,101.2791,140.17,140.08,3.48714308]
[1724961531110,100.0,140.17,140.11,27.4]
[1724961531410,100.0,140.17,140.13,0.04790515]
[1724961531411,0.05010314,140.15,140.13,0.04790515]
[1724961532312,96.36008065,140.12,140.11,30.9677]
[1724961533218,96.36008065,140.12,140.11,34.50091951]
[1724961533422,96.36008065,140.12,140.11,36.78380428]
[1724961533618,96.36008065,140.12,140.11,9.38380428]
[1724961533913,96.36008065,140.12,140.11,7.10091951]
[1724961536314,96.36008065,140.12,140.11,3.5677]
[1724961536814,96.36008065,140.12,140.11,7.11304401]
[1724961540214,96.36008065,140.12,140.11,30.9677]
[1724961540420,0.05010314,140.15,140.14,3.5669]
[1724961540727,0.05010314,140.15,140.14,30.9669]
[1724961541619,2.6618,140.21,140.14,27.4]
[1724961541921,2.6618,140.21,140.11,9.70414148]
[1724961541922,2.6618,140.21,140.16,27.4]
[1724961542127,2.6618,140.21,140.18,3.5657]
[1724961542511,2.6618,140.21,140.18,3.6147303]
[1724961542718,2.7108725,140.21,140.18,3.6147303]
[1724961542918,1.3596725,140.21,140.18,3.6147303]
[1724961543123,1.3596725,140.21,140.19,3.5656]
[1724961543324,0.0490725,140.21,140.19,3.48692817]
[1724961543618,0.0490725,140.21,140.18,27.4490303]
[1724961544218,0.0490725,140.21,140.2,30.9654]
[1724961544419,0.0490725,140.21,140.2,34.51472208]
[1724961545122,0.0490725,140.21,140.2,36.79626032]
[1724961545318,2.6513,140.28,140.24,3.5642]
[1724961546122,6.14,140.3,140.22,27.4]
[1724961546321,0.04895442,140.27,140.25,0.05024316]
[1724961547223,0.04895442,140.27,140.26,3.5639]
[1724961549114,0.04895442,140.27,140.26,30.9639]
[1724961549822,1.2799,140.32,140.31,3.5626]
[1724961550017,27.4,140.36,140.28,27.4]
[1724961550214,28.8039,140.36,140.29,3.65215609]
[1724961550622,28.8039,140.36,140.31,3.5625]
[1724961551022,0.05165516,140.35,140.32,0.04568415]
[1724961551226,0.05165516,140.35,140.32,3.60798415]
[1724961551429,0.05165516,140.35,140.32,0.04568415]
[1724961553625,0.05165516,140.35,140.32,3.60788415]
[1724961554121,0.05165516,140.35,140.32,0.04568415]
[1724961555321,0.05165516,140.35,140.32,3.60778415]
[1724961555525,0.05165516,140.35,140.32,0.04568415]
[1724961557015,0.05165516,140.35,140.32,3.60798415]
[1724961557420,0.05165516,140.35,140.32,0.04568415]
[1724961558821,3.61325516,140.35,140.32,0.04568415]
[1724961560530,27.4,140.34,140.17,3.28854149]
[1724961560719,27.4,140.34,140.23,33.52]
[1724961561121,27.4,140.34,140.26,3.5638]
[1724961561327,27.4,140.32,140.26,3.5638]
[1724961561522,1.3525,140.31,140.23,27.4]
[1724961561732,0.05008568,140.3,140.28,0.04669666]
[1724961562520,1.43758568,140.3,140.28,0.04669666]
[1724961563431,0.05008568,140.3,140.28,0.04669666]
[1724961563934,0.05008568,140.3,140.28,3.61009666]
[1724961564234,0.05008568,140.3,140.28,0.04669666]
[1724961566733,0.05008568,140.3,140.21,27.4]
[1724961566734,27.45008568,140.3,140.21,27.4]
[1724961566928,27.4,140.3,140.21,27.4]
[1724961567129,30.963,140.3,140.21,27.4]
[1724961567329,27.4,140.3,140.21,33.52]
[1724961567523,27.4,140.3,140.21,27.4]
[1724961567724,0.05074223,140.27,140.24,0.04897368]
[1724961568530,27.4,140.26,140.18,6.12]
[1724961568729,27.4,140.26,140.17,27.4]
[1724961568929,27.4,140.26,140.16,6.12]
[1724961568930,3.5644,140.24,140.16,6.12]
[1724961569132,3.5644,140.24,140.15,33.52]
[1724961569133,30.9644,140.24,140.15,33.52]
[1724961569334,27.4,140.24,140.15,27.4]
[1724961569537,3.5653,140.21,140.15,3.5665]
[1724961569739,0.04809567,140.21,140.14,33.52]
[1724961569934,0.04809567,140.21,140.14,27.4]
[1724961570431,0.04809567,140.21,140.16,3.5664]
[1724961571041,1.43039567,140.21,140.17,3.5661]
[1724961571432,1.43039567,140.21,140.16,3.48108357]
[1724961571631,1.43039567,140.21,140.15,27.4]
[1724961572139,1.43039567,140.21,140.15,30.98731633]
[1724961572337,1.43039567,140.21,140.18,3.5659]
[1724961572835,1.43039567,140.21,140.17,27.4]
[1724961572836,0.04809567,140.21,140.17,27.4]
[1724961573333,11.0666,140.25,140.19,27.4]
[1724961573334,1.3823,140.25,140.19,27.4]
[1724961574236,1.3823,140.25,140.21,3.565]
[1724961574538,0.04531066,140.24,140.22,0.05155075]
[1724961575742,0.04531066,140.24,140.23,27.4]
[1724961576047,10.1952,140.32,140.23,31.01720027]
[1724961576230,27.4,140.3,140.23,3.61720027]
[1724961576427,27.4,140.3,140.21,27.4]
[1724961576635,33.52,140.3,140.21,27.4]
[1724961576831,33.52,140.3,140.24,3.5644]
[1724961577038,33.52,140.3,140.26,0.04554694]
[1724961577039,0.05282213,140.28,140.26,0.04554694]
[1724961578736,3.61632213,140.28,140.26,0.04554694]
[1724961578936,0.05282213,140.28,140.26,0.04554694]
[1724961579333,0.05282213,140.28,140.26,3.60934694]
[1724961580436,0.05282213,140.28,140.27,3.5636]
[1724961581043,0.05282213,140.28,140.26,3.60934694]
[1724961582940,0.05282213,140.28,140.27,3.5636]
[1724961584940,0.05282213,140.28,140.26,3.60934694]
[1724961585342,0.05282213,140.28,140.27,3.5636]
[1724961587144,0.05282213,140.28,140.26,3.60934694]
[1724961588844,0.05282213,140.28,140.26,0.04554694]
[1724961591347,0.05282213,140.28,140.27,3.5636]
[1724961591547,0.05282213,140.28,140.26,0.04554694]
[1724961592340,3.5636,140.27,140.26,0.04554694]
[1724961592746,0.05282213,140.28,140.26,0.04554694]
[1724961592938,3.61632213,140.28,140.26,0.04554694]
[1724961594147,3.61632213,140.28,140.2,27.4]
[1724961594148,27.45282213,140.28,140.18,27.4]
[1724961594346,27.4,140.28,140.18,27.4]
[1724961594843,27.4,140.3,140.2,27.4]
[1724961595261,0.05449651,140.26,140.24,0.05098974]
[1724961597449,0.05449651,140.26,140.24,3.61518974]
[1724961598343,0.05449651,140.26,140.24,0.05098974]
[1724961600053,0.05449651,140.26,140.24,3.61528974]
[1724961600253,3.61839651,140.26,140.24,0.05098974]
[1724961600455,4.89069651,140.26,140.24,0.05098974]
[1724961601351,3.5641,140.25,140.24,0.05098974]
[1724961601850,1.32679651,140.26,140.24,0.05098974]
[1724961602245,0.05449651,140.26,140.25,3.5641]
[1724961602554,0.05449651,140.26,140.24,0.05098974]
[1724961602951,27.45449651,140.26,140.24,0.05098974]
[1724961603255,27.45449651,140.26,140.19,3.5655]
[1724961603256,3.5647,140.23,140.19,3.5655]
[1724961603458,27.4,140.23,140.17,3.61220561]
[1724961603658,27.4,140.23,140.16,3.28854149]
[1724961603659,27.4,140.23,140.16,2.2811867]
[1724961603848,3.5651,140.22,140.18,3.5658]
[1724961604155,3.5651,140.22,140.16,2.2811867]
[1724961604156,27.4,140.23,140.16,2.2811867]
[1724961604454,3.61398065,140.21,140.17,3.566]
[1724961604866,0.04868065,140.21,140.14,2.28184852]
[1724961605061,3.5655,140.2,140.14,2.28184852]
[1724961605261,27.44868065,140.21,140.14,2.28184852]
[1724961605471,27.4,140.19,140.13,5.57039001]
[1724961605663,0.04802982,140.17,140.13,5.57039001]
[1724961605873,0.04802982,140.17,140.15,27.4]
[1724961606166,0.04802982,140.17,140.16,2.28184852]
[1724961606558,0.04802982,140.17,140.16,5.84824852]
[1724961606757,0.04802982,140.17,140.16,3.5664]
[1724961607160,335.0,140.23,140.16,2.28184601]
[1724961607366,6.2985,140.25,140.17,27.4]
[1724961607573,2.7342,140.25,140.17,27.4]
[1724961607765,3.5646,140.24,140.19,3.5655]
[1724961608071,30.1342,140.25,140.18,2.28184601]
[1724961608373,0.051482,140.23,140.2,0.05080507]
[1724961608868,0.051482,140.23,140.22,3.5649]
[1724961610463,0.051482,140.23,140.22,7.1187624]
[1724961611574,0.051482,140.23,140.22,3.5649]
[1724961613371,0.051482,140.23,140.2,3.61785369]
[1724961613571,0.051482,140.23,140.2,5.89921943]
[1724961613774,0.051482,140.23,140.2,2.33217081]
[1724961614171,27.4,140.21,140.14,3.28854149]
[1724961614384,27.4,140.21,140.12,33.11611243]
[1724961614574,27.4,140.21,140.18,2.28181559]
[1724961614769,3.5658,140.19,140.13,5.84901559]
[1724961614973,27.4,140.2,140.13,5.84901559]
[1724961615179,0.05160133,140.18,140.13,3.5672]
[1724961615373,3.61770133,140.18,140.13,3.5672]
[1724961615574,27.45160133,140.18,140.11,3.5674]
[1724961615878,3.61938567,140.16,140.11,5.84921559]
[1724961616181,3.61938567,140.16,140.11,3.5674]
[1724961616476,0.05278567,140.16,140.12,3.5674]
[1724961616976,27.45278567,140.16,140.11,3.5676]
[1724961617479,27.45278567,140.16,140.1,3.5679]
[1724961617677,27.4,140.13,140.09,2.28249477]
[1724961617872,0.05033544,140.12,140.07,3.56491031]
[1724961618072,0.05033544,140.12,140.08,3.5684]
[1724961618279,0.05033544,140.12,140.06,2.28249477]
[1724961618673,0.05033544,140.12,140.07,27.4]
[1724961618874,0.05033544,140.12,140.08,2.28249477]
[1724961619076,0.05033544,140.12,140.11,3.5677]
[1724961623886,0.05033544,140.12,140.1,3.5679]
[1724961624384,0.05033544,140.12,140.11,3.5677]
[1724961624883,1.3368,140.17,140.14,3.5669]
[1724961625187,1.3368,140.17,140.14,7.13246813]
[1724961625481,337.7245,140.21,140.15,3.5665]
[1724961625786,10.0997,140.21,140.15,3.5665]
[1724961625986,0.04712594,140.19,140.17,0.04573821]
[1724961626784,3.61272594,140.19,140.17,0.04573821]
[1724961630283,0.04712594,140.19,140.17,0.04573821]
[1724961630690,0.04712594,140.19,140.17,3.61173821]
[1724961631482,0.04712594,140.19,140.18,3.5659]
[1724961631886,0.04712594,140.19,140.17,0.04573821]
[1724961632484,0.04712594,140.19,140.17,3.61173821]
[1724961632993,0.04712594,140.19,140.18,3.5659]
[1724961638683,0.04712594,140.19,140.17,3.61173821]
[1724961640787,0.04712594,140.19,140.17,0.04573821]
[1724961640987,0.04712594,140.19,140.18,3.5659]
[1724961642786,0.04712594,140.19,140.17,3.61173821]
[1724961642992,0.04712594,140.19,140.17,0.04573821]
[1724961644187,0.04712594,140.19,140.17,3.61173821]
[1724961644787,0.04712594,140.19,140.17,0.04573821]
[1724961645392,3.61282594,140.19,140.17,0.04573821]
[1724961646793,27.44712594,140.19,140.13,3.567]
[1724961646989,27.4,140.19,140.13,3.567]
[1724961647190,27.4,140.19,140.13,7.07033496]
[1724961647493,33.5,140.19,140.13,3.50333496]
[1724961647699,0.0465314,140.17,140.12,27.4]
[1724961648291,0.0465314,140.17,140.15,3.5665]
[1724961648498,0.0465314,140.17,140.15,7.12010159]
[1724961648798,0.0465314,140.17,140.16,3.5664]
[1724961649189,0.0465314,140.17,140.16,30.9664]
[1724961649393,0.0465314,140.17,140.16,34.44644564]
[1724961650790,335.0,140.27,140.16,30.88004564]
[1724961651098,335.0,140.27,140.19,27.4]
[1724961651099,7.4714,140.27,140.19,27.4]
[1724961651291,1.3914,140.27,140.19,27.4]
[1724961651491,3.564,140.26,140.21,3.565]
[1724961651892,0.05418739,140.25,140.22,0.04652259]
[1724961652088,3.5645,140.24,140.22,0.04652259]
[1724961653401,3.5646,140.23,140.16,27.4]
[1724961653600,27.4,140.26,140.17,2.28180037]
[1724961653798,3.5642,140.25,140.2,3.5652]
[1724961653995,27.4,140.26,140.2,3.5652]
[1724961654603,0.04511761,140.24,140.2,3.5652]
[1724961655102,3.60961761,140.24,140.2,3.5652]
[1724961655405,0.04511761,140.24,140.17,2.28180037]
[1724961656099,3.5646,140.23,140.19,3.5656]
[1724961656299,0.04511761,140.24,140.16,27.4]
[1724961656495,0.04633434,140.21,140.16,27.4]
[1724961656692,0.04633434,140.21,140.18,3.5658]
[1724961656892,0.04633434,140.21,140.18,27.4]
[1724961657298,0.04633434,140.21,140.2,3.5654]
[1724961657504,0.04633434,140.21,140.2,30.9654]
[1724961661705,1.3914,140.27,140.24,3.5642]
[1724961661899,1.3914,140.27,140.2,27.4]
[1724961662104,3.564,140.26,140.2,27.4]
[1724961662306,3.564,140.26,140.22,3.5647]
[1724961665311,0.04863159,140.29,140.26,0.0458296]
[1724961665810,0.04863159,140.29,140.26,3.6096296]
[1724961667010,0.04863159,140.29,140.27,3.5636]
[1724961668014,0.04863159,140.29,140.28,3.5634]
[1724961673518,0.04863159,140.29,140.28,30.9634]
[1724961674014,3.5617,140.35,140.31,3.5624]
[1724961674210,30.0697,140.37,140.28,27.4]
[1724961674211,31.3714,140.37,140.28,27.4]
[1724961674414,3.9714,140.37,140.3,27.4]
[1724961675021,3.9714,140.37,140.32,0.04879597]
[1724961675217,0.05007538,140.35,140.34,3.5618]
[1724961675412,0.05007538,140.35,140.34,30.9618]
[1724961675919,0.05007538,140.35,140.32,0.04879597]
[1724961676318,0.05007538,140.35,140.34,27.4]
[1724961676521,0.05007538,140.35,140.34,30.9618]
[1724961676724,0.05007538,140.35,140.32,27.44879597]
[1724961677216,0.05007538,140.35,140.33,3.53260292]
[1724961677415,0.05007538,140.35,140.34,3.5618]
[1724961677624,0.05007538,140.35,140.34,34.49297819]
[1724961678824,1.3009,140.44,140.34,30.93117819]
[1724961679018,1.3009,140.44,140.38,27.4]
[1724961679823,0.04712148,140.42,140.4,0.04531384]
[1724961680128,0.04712148,140.42,140.4,3.60551384]
[1724961680515,0.04712148,140.42,140.4,0.04531384]
[1724961681525,27.44712148,140.42,140.4,0.04531384]
[1724961681724,27.4,140.41,140.32,27.4]
[1724961681924,34.73,140.41,140.33,3.48477712]
[1724961682325,34.73,140.41,140.32,27.4]
[1724961682525,34.73,140.41,140.32,30.89652356]
[1724961682733,0.04951881,140.38,140.35,0.04532151]
[1724961683226,0.04951881,140.38,140.36,27.4]
[1724961683731,0.04951881,140.38,140.35,0.04532151]
[1724961684232,0.04951881,140.38,140.36,3.5613]
[1724961686931,0.04951881,140.38,140.35,27.44532151]
[1724961686932,0.04951881,140.38,140.37,3.5611]
[1724961689634,0.04951881,140.38,140.36,3.5613]
[1724961689833,0.04951881,140.38,140.35,27.44532151]
[1724961690033,0.04951881,140.38,140.37,27.4]
[1724961690232,1.2744,140.43,140.38,3.5608]
[1724961690437,4.8341,140.43,140.38,3.5608]
[1724961691330,0.05145323,140.42,140.39,0.05041324]
[1724961691530,0.05145323,140.42,140.39,3.61101324]
[1724961691730,0.05145323,140.42,140.39,0.05041324]
[1724961692636,0.05145323,140.42,140.4,3.62091076]
[1724961693234,0.05145323,140.42,140.41,3.5601]
[1724961693539,0.05145323,140.42,140.41,30.9601]
[1724961693736,0.05145323,140.42,140.41,27.4]
[1724961694040,0.05145323,140.42,140.41,31.01094267]
[1724961694243,0.05145323,140.42,140.41,34.57104267]
[1724961694936,0.03145323,140.42,140.41,34.57104267]
[1724961695438,1.2701,140.47,140.44,3.5591]
[1724961695641,1.2701,140.47,140.43,27.4]
[1724961695942,4.8809,140.5,140.46,3.5588]
[1724961696329,0.05100391,140.49,140.47,0.04961682]
[1724961697845,0.05100391,140.49,140.47,3.60801682]
[1724961699541,341.06,140.53,140.47,27.44961682]
[1724961699839,3.5568,140.54,140.5,27.4]
[1724961700237,3.5568,140.54,140.5,3.5577]
[1724961700440,4.944,140.54,140.5,3.5577]
[1724961700641,3.61115423,140.53,140.51,0.05462781]
[1724961700836,0.05415423,140.53,140.51,0.05462781]
[1724961702046,3.5573,140.52,140.51,0.05462781]
[1724961702746,3.61135423,140.53,140.51,0.05462781]
[1724961703249,0.05415423,140.53,140.51,0.05462781]
[1724961703546,0.05415423,140.53,140.52,3.5573]
[1724961706644,0.05415423,140.53,140.51,0.05462781]
[1724961707146,3.5573,140.52,140.51,0.05462781]
[1724961707743,3.5573,140.52,140.47,27.4]
[1724961708042,3.5573,140.52,140.49,3.5579]
[1724961708845,3.61125423,140.53,140.49,0.05071217]
[1724961709344,0.05415423,140.53,140.49,0.05071217]
[1724961709850,0.05415423,140.53,140.49,31.01908775]
[1724961710037,0.05415423,140.53,140.51,27.4]
[1724961710846,0.05415423,140.53,140.52,3.5573]
[1724961711639,0.05415423,140.53,140.51,27.4]
[1724961711844,0.05415423,140.53,140.51,30.9575]
[1724961712044,0.05415423,140.53,140.51,27.4]
[1724961712241,0.05415423,140.53,140.52,3.5573]
[1724961713750,0.05415423,140.53,140.51,30.9574]
[1724961713954,0.05415423,140.53,140.46,3.29487735]
[1724961713955,27.45415423,140.53,140.46,3.29487735]
[1724961714150,27.4,140.5,140.41,3.29487735]
[1724961714344,27.4,140.5,140.41,8.1986537]
[1724961714545,26.64031208,140.5,140.41,8.1986537]
[1724961714746,26.64031208,140.5,140.41,14.2386537]
[1724961714941,0.04697677,140.47,140.44,0.05056581]
[1724961715344,0.04697677,140.47,140.44,3.60966581]
[1724961716145,0.04697677,140.47,140.44,0.05056581]
[1724961717556,3.60567677,140.47,140.44,0.05056581]
[1724961717950,0.04697677,140.47,140.44,0.05056581]
[1724961718558,3.559,140.45,140.44,0.05056581]
[1724961721556,0.04697677,140.47,140.44,0.05056581]
[1724961722165,3.559,140.45,140.44,0.05056581]
[1724961722467,0.04697677,140.47,140.44,0.05056581]
[1724961723259,3.5589,140.46,140.44,0.05056581]
[1724961723569,0.04697677,140.47,140.44,0.05056581]
[1724961724360,3.559,140.45,140.44,0.05056581]
[1724961725869,3.5589,140.46,140.44,0.05056581]
[1724961726266,0.04697677,140.47,140.44,27.45056581]
[1724961727869,0.04697677,140.47,140.44,31.00966581]
[1724961728460,0.04697677,140.47,140.44,3.60966581]
[1724961728965,0.04697677,140.47,140.44,27.45056581]
[1724961729164,0.04697677,140.47,140.46,27.4]
[1724961729363,3.557,140.53,140.49,3.558]
[1724961730374,0.04681292,140.52,140.5,0.04635453]
[1724961730862,0.04681292,140.52,140.5,27.44635453]
[1724961731064,0.04681292,140.52,140.51,3.5575]
[1724961731467,30.1837,140.59,140.51,3.5575]
[1724961731865,30.1837,140.59,140.5,27.4]
[1724961732076,3.5574,140.52,140.48,9.5695851]
[1724961732471,0.05129724,140.51,140.49,0.04924987]
[1724961733171,0.05129724,140.51,140.49,3.60714987]
[1724961734573,0.05129724,140.51,140.5,3.5578]
[1724961735173,0.05129724,140.51,140.49,3.60724987]
[1724961736177,0.05129724,140.51,140.49,0.04924987]
[1724961736381,3.60889724,140.51,140.49,0.04924987]
[1724961736878,0.05129724,140.51,140.49,0.04924987]
[1724961737676,0.05129724,140.51,140.5,3.5578]
[1724961738278,27.4,140.57,140.5,27.4]
[1724961738473,27.4,140.57,140.51,3.5574]
[1724961738474,3.5567,140.55,140.51,3.5574]
[1724961739073,3.5564,140.56,140.52,3.5572]
[1724961739273,0.04873206,140.55,140.53,0.04917633]
[1724961739569,0.05118156,140.55,140.54,3.5568]
[1724961739769,0.05118156,140.55,140.53,0.05341122]
[1724961740576,0.05118156,140.55,140.53,3.61031122]
[1724961740976,0.05118156,140.55,140.53,0.05341122]
[1724961741176,0.05118156,140.55,140.54,3.5568]
[1724961742079,3.5554,140.6,140.56,3.5563]
[1724961742378,335.0,140.62,140.56,3.5563]
[1724961742681,3.5552,140.61,140.56,3.5563]
[1724961742869,0.0467305,140.6,140.57,0.05081696]
[1724961743283,0.0467305,140.6,140.57,3.60681696]
[1724961744679,0.0467305,140.6,140.57,0.05081696]
[1724961745284,3.6020305,140.6,140.57,3.60681696]
[1724961745788,0.0467305,140.6,140.57,0.05081696]
[1724961745988,0.0467305,140.6,140.58,3.5557]
[1724961746486,370.7582,140.65,140.62,3.5547]
[1724961746487,3.5541,140.65,140.62,3.5547]
[1724961746785,33.42,140.7,140.59,27.4]
[1724961746981,3.5535,140.67,140.63,3.5543]
[1724961747172,221.45767948,140.72,140.63,27.4]
[1724961747375,0.05103378,140.69,140.66,0.04633535]
[1724961747575,3.60413378,140.69,140.66,3.60003535]
[1724961748284,0.05103378,140.69,140.66,0.04633535]
[1724961748787,3.60413378,140.69,140.66,0.04633535]
[1724961749175,3.5533,140.68,140.66,0.04633535]
[1724961749983,3.5535,140.67,140.66,0.04633535]
[1724961753285,3.60423378,140.69,140.66,0.04633535]
[1724961753894,0.05103378,140.69,140.67,3.5534]
[1724961754087,0.05103378,140.69,140.66,0.04633535]
[1724961754982,0.05103378,140.69,140.67,3.5533]
[1724961756292,0.05103378,140.69,140.68,3.5532]
[1724961757593,338.5518,140.74,140.67,27.4]
[1724961757799,338.5518,140.74,140.68,9.22168277]
[1724961758099,338.5518,140.74,140.69,3.5527]
[1724961758395,3.5518,140.74,140.69,3.5527]
[1724961758597,0.05407003,140.73,140.7,0.04690563]
[1724961760694,3.60617003,140.73,140.7,0.04690563]
[1724961762503,3.60617003,140.73,140.7,3.59940563]
[1724961762801,3.5523,140.72,140.7,0.04690563]
[1724961763099,0.05407003,140.73,140.7,0.04690563]
[1724961763689,3.60617003,140.73,140.7,3.59950563]
[1724961764299,0.05407003,140.73,140.71,3.5525]
[1724961765402,0.05407003,140.73,140.72,3.5522]
[1724961766502,57.1158,140.81,140.75,3.5513]
[1724961766708,28.6758,140.81,140.73,3.46775877]
[1724961767199,3.5507,140.79,140.75,3.5513]
[1724961767396,3.5507,140.79,140.71,27.4]
[1724961767397,28.6758,140.81,140.71,27.4]
[1724961767705,3.60484863,140.78,140.76,0.0544213]
[1724961768197,0.05404863,140.78,140.76,3.6054213]
[1724961768598,0.05404863,140.78,140.76,0.0544213]